[Event "Titled Tuesday Blitz July 18 Late 2023"]
[White "Miguelitro69"]
[Black "Joubert, Dantelle"]
[BlackFideId "14310813"]
[WhiteElo "2254"]
[BlackElo "2059"]
[Result "1-0"]
[Round "7"]
[TimeControl "180+2"]
[Date "2023.07.18"]
[WhiteClock "0:00:16"]
[BlackClock "0:00:00"]
[Board "147"]

1. e4 {[%clk 0:03:00]}  c5 {[%clk 0:02:57]} 2. Nf3 {[%clk 0:03:01]}  d6 {[%clk 0:02:56]} 3. d4 {[%clk 0:03:01]}  cxd4 {[%clk 0:02:55]} 4. Nxd4 {[%clk 0:03:02]}  Nf6 {[%clk 0:02:55]} 5. Nc3 {[%clk 0:03:03]}  g6 {[%clk 0:02:56]} 6. Bc4 {[%clk 0:03:03]}  Bg7 {[%clk 0:02:55]} 7. Be3 {[%clk 0:03:03]}  O-O {[%clk 0:02:54]} 8. f3 {[%clk 0:03:03]}  Nc6 {[%clk 0:02:54]} 9. Qd2 {[%clk 0:03:03]}  Nxd4 {[%clk 0:02:53]} 10. Bxd4 {[%clk 0:03:03]}  Be6 {[%clk 0:02:53]} 11. Bxe6 {[%clk 0:03:00]}  fxe6 {[%clk 0:02:53]} 12. O-O {[%clk 0:02:58]}  Qa5 {[%clk 0:02:33]} 13. Rfd1 {[%clk 0:02:46]}  Rac8 {[%clk 0:02:17]} 14. Kh1 {[%clk 0:02:43]}  Qh5 {[%clk 0:02:13]} 15. Ne2 {[%clk 0:02:37]}  b6 {[%clk 0:02:10]} 16. Nf4 {[%clk 0:02:29]}  Qb5 {[%clk 0:01:56]} 17. Nxe6 {[%clk 0:02:25]}  Rf7 {[%clk 0:01:46]} 18. Nxg7 {[%clk 0:02:20]}  Kxg7 {[%clk 0:01:46]} 19. b3 {[%clk 0:02:19]}  Kg8 {[%clk 0:01:40]} 20. c4 {[%clk 0:02:19]}  Qh5 {[%clk 0:01:39]} 21. Qe1 {[%clk 0:02:00]}  g5 {[%clk 0:01:29]} 22. e5 {[%clk 0:01:58]}  dxe5 {[%clk 0:01:18]} 23. Qxe5 {[%clk 0:01:59]}  Qh4 {[%clk 0:01:12]} 24. Qg3 {[%clk 0:01:50]}  Qxg3 {[%clk 0:01:03]} 25. hxg3 {[%clk 0:01:50]}  Nh5 {[%clk 0:01:03]} 26. Kh2 {[%clk 0:01:48]}  Rc6 {[%clk 0:01:01]} 27. Be5 {[%clk 0:01:41]}  Rf5 {[%clk 0:00:57]} 28. Rd5 {[%clk 0:01:20]}  Rh6 {[%clk 0:00:53]} 29. Kg1 {[%clk 0:01:14]}  Nf6 {[%clk 0:00:38]} 30. Rd8+ {[%clk 0:01:00]}  Kf7 {[%clk 0:00:37]} 31. Re1 {[%clk 0:00:59]}  g4 {[%clk 0:00:33]} 32. Bxf6 {[%clk 0:00:56]}  Rfxf6 {[%clk 0:00:26]} 33. fxg4 {[%clk 0:00:53]}  Rd6 {[%clk 0:00:20]} 34. Rf1+ {[%clk 0:00:41]}  Ke6 {[%clk 0:00:17]} 35. Rdf8 {[%clk 0:00:36]}  Kd7 {[%clk 0:00:14]} 36. R8f7 {[%clk 0:00:30]}  Rd2 {[%clk 0:00:11]} 37. Re1 {[%clk 0:00:22]}  Re6 {[%clk 0:00:08]} 38. Rxe6 {[%clk 0:00:21]}  Kxe6 {[%clk 0:00:09]} 39. Rf2 {[%clk 0:00:21]}  Rd1+ {[%clk 0:00:08]} 40. Kh2 {[%clk 0:00:21]}  Kd6 {[%clk 0:00:07]} 41. Kh3 {[%clk 0:00:18]}  e5 {[%clk 0:00:07]} 42. Rf7 {[%clk 0:00:18]}  Rd2 {[%clk 0:00:04]} 43. Rxh7 {[%clk 0:00:17]}  Rxa2 {[%clk 0:00:03]} 44. Rh6+ {[%clk 0:00:16]}  Ke7 {[%clk 0:00:02]} 45. Rh5 {[%clk 0:00:16]}  Ke6 {[%clk 0:00:00]} 46. Rh8 {[%clk 0:00:16]} 1-0


[Site "https://www.chess.com"]

[Event "Titled Tuesday Blitz July 18 Late 2023"]
[White "Wu, Derek"]
[Black "Liu, Casper"]
[WhiteFideId "30914558"]
[BlackFideId "1454153"]
[WhiteElo "2763"]
[BlackElo "2428"]
[Result "1-0"]
[Round "7"]
[TimeControl "180+2"]
[Date "2023.07.18"]
[WhiteClock "0:00:11"]
[BlackClock "0:00:11"]
[Board "152"]

1. e4 {[%clk 0:03:00]}  c5 {[%clk 0:03:00]} 2. Nf3 {[%clk 0:03:01]}  d6 {[%clk 0:03:00]} 3. d4 {[%clk 0:03:00]}  cxd4 {[%clk 0:03:01]} 4. Nxd4 {[%clk 0:03:01]}  Nf6 {[%clk 0:03:02]} 5. Nc3 {[%clk 0:03:01]}  Nc6 {[%clk 0:03:03]} 6. Bc4 {[%clk 0:03:01]}  e6 {[%clk 0:03:02]} 7. Be3 {[%clk 0:03:00]}  a6 {[%clk 0:03:02]} 8. Qe2 {[%clk 0:02:59]}  Qa5 {[%clk 0:03:03]} 9. Nb3 {[%clk 0:02:57]}  Qc7 {[%clk 0:03:02]} 10. O-O-O {[%clk 0:02:54]}  b5 {[%clk 0:03:02]} 11. Bd3 {[%clk 0:02:53]}  Nb4 {[%clk 0:03:02]} 12. Kb1 {[%clk 0:02:52]}  Bd7 {[%clk 0:02:59]} 13. g4 {[%clk 0:02:48]}  Nxd3 {[%clk 0:02:48]} 14. Qxd3 {[%clk 0:02:49]}  b4 {[%clk 0:02:46]} 15. Ne2 {[%clk 0:02:42]}  Bb5 {[%clk 0:02:43]} 16. Qd2 {[%clk 0:02:38]}  Nxe4 {[%clk 0:02:41]} 17. Qxb4 {[%clk 0:02:33]}  d5 {[%clk 0:02:39]} 18. Qe1 {[%clk 0:02:29]}  Rc8 {[%clk 0:02:18]} 19. Ned4 {[%clk 0:02:27]}  Be7 {[%clk 0:01:58]} 20. f3 {[%clk 0:02:25]}  Nd6 {[%clk 0:01:56]} 21. Bc1 {[%clk 0:02:13]}  O-O {[%clk 0:01:53]} 22. c3 {[%clk 0:01:55]}  a5 {[%clk 0:01:47]} 23. Nxb5 {[%clk 0:01:45]}  Nxb5 {[%clk 0:01:46]} 24. Qe2 {[%clk 0:01:43]}  Rb8 {[%clk 0:01:35]} 25. Ka1 {[%clk 0:01:21]}  Bf6 {[%clk 0:01:22]} 26. g5 {[%clk 0:01:10]}  Nxc3 {[%clk 0:00:57]} 27. bxc3 {[%clk 0:01:00]}  Qxc3+ {[%clk 0:00:58]} 28. Bb2 {[%clk 0:00:58]}  Qxb2+ {[%clk 0:00:58]} 29. Qxb2 {[%clk 0:00:58]}  Bxb2+ {[%clk 0:00:58]} 30. Kxb2 {[%clk 0:00:59]}  a4 {[%clk 0:00:59]} 31. Rc1 {[%clk 0:00:54]}  Rb4 {[%clk 0:00:52]} 32. Ka3 {[%clk 0:00:53]}  Rf4 {[%clk 0:00:45]} 33. Nd2 {[%clk 0:00:49]}  Rb8 {[%clk 0:00:40]} 34. Rc3 {[%clk 0:00:42]}  Rd4 {[%clk 0:00:38]} 35. Rb1 {[%clk 0:00:41]}  Re8 {[%clk 0:00:31]} 36. Rb2 {[%clk 0:00:38]}  e5 {[%clk 0:00:31]} 37. Nf1 {[%clk 0:00:28]}  e4 {[%clk 0:00:27]} 38. fxe4 {[%clk 0:00:29]}  dxe4 {[%clk 0:00:27]} 39. Ne3 {[%clk 0:00:29]}  h6 {[%clk 0:00:25]} 40. gxh6 {[%clk 0:00:25]}  gxh6 {[%clk 0:00:24]} 41. Nf5 {[%clk 0:00:20]}  Rd3 {[%clk 0:00:22]} 42. Rxd3 {[%clk 0:00:20]}  exd3 {[%clk 0:00:23]} 43. Rd2 {[%clk 0:00:19]}  Re2 {[%clk 0:00:17]} 44. Rxd3 {[%clk 0:00:16]}  Rxh2 {[%clk 0:00:18]} 45. Rg3+ {[%clk 0:00:11]}  Kh7 {[%clk 0:00:16]} 46. Rg7+ {[%clk 0:00:11]}  Kh8 {[%clk 0:00:16]} 47. Rxf7 {[%clk 0:00:11]}  h5 {[%clk 0:00:15]} 48. Ne7 {[%clk 0:00:08]}  h4 {[%clk 0:00:14]} 49. Ng6+ {[%clk 0:00:08]}  Kg8 {[%clk 0:00:14]} 50. Rf4 {[%clk 0:00:09]}  h3 {[%clk 0:00:15]} 51. Rh4 {[%clk 0:00:08]}  Rg2 {[%clk 0:00:13]} 52. Nf4 {[%clk 0:00:08]}  Rg3+ {[%clk 0:00:13]} 53. Kxa4 {[%clk 0:00:09]}  Kf7 {[%clk 0:00:11]} 54. Nxh3 {[%clk 0:00:08]}  Ke7 {[%clk 0:00:11]} 55. Nf4 {[%clk 0:00:06]}  Kd6 {[%clk 0:00:11]} 56. Ne2 {[%clk 0:00:06]}  Re3 {[%clk 0:00:11]} 57. Nd4 {[%clk 0:00:05]}  Kc5 {[%clk 0:00:12]} 58. Nb3+ {[%clk 0:00:06]}  Kb6 {[%clk 0:00:12]} 59. Ka3 {[%clk 0:00:06]}  Re2 {[%clk 0:00:12]} 60. Rb4+ {[%clk 0:00:07]}  Ka6 {[%clk 0:00:12]} 61. Rc4 {[%clk 0:00:07]}  Kb5 {[%clk 0:00:12]} 62. Rd4 {[%clk 0:00:07]}  Rh2 {[%clk 0:00:11]} 63. Rd2 {[%clk 0:00:08]}  Rh3 {[%clk 0:00:12]} 64. Kb2 {[%clk 0:00:08]}  Kb4 {[%clk 0:00:12]} 65. Nd4 {[%clk 0:00:08]}  Ka4 {[%clk 0:00:11]} 66. Nc2 {[%clk 0:00:09]}  Rh8 {[%clk 0:00:11]} 67. Rd4+ {[%clk 0:00:09]}  Kb5 {[%clk 0:00:11]} 68. Rd3 {[%clk 0:00:10]}  Kc5 {[%clk 0:00:12]} 69. Rb3 {[%clk 0:00:10]}  Rh2 {[%clk 0:00:12]} 70. a4 {[%clk 0:00:10]}  Rh4 {[%clk 0:00:10]} 71. Rb5+ {[%clk 0:00:10]}  Kc6 {[%clk 0:00:10]} 72. Kb3 {[%clk 0:00:09]}  Rh3+ {[%clk 0:00:10]} 73. Kc4 {[%clk 0:00:09]}  Rh4+ {[%clk 0:00:09]} 74. Nd4+ {[%clk 0:00:10]}  Kc7 {[%clk 0:00:08]} 75. a5 {[%clk 0:00:10]}  Rh1 {[%clk 0:00:08]} 76. a6 {[%clk 0:00:10]}  Rc1+ {[%clk 0:00:09]} 77. Kb4 {[%clk 0:00:09]}  Ra1 {[%clk 0:00:09]} 78. Ra5 {[%clk 0:00:09]}  Rxa5 {[%clk 0:00:09]} 79. Kxa5 {[%clk 0:00:10]}  Kb8 {[%clk 0:00:09]} 80. Kb6 {[%clk 0:00:10]}  Ka8 {[%clk 0:00:10]} 81. Nb5 {[%clk 0:00:10]}  Kb8 {[%clk 0:00:10]} 82. a7+ {[%clk 0:00:11]}  Ka8 {[%clk 0:00:11]} 83. Nc7# {[%clk 0:00:11]} 1-0


[Site "https://www.chess.com"]

[Event "Titled Tuesday Blitz July 18 Late 2023"]
[White "Naroditsky, Daniel"]
[Black "Hakobyan, Aram"]
[WhiteFideId "2026961"]
[BlackFideId "13306677"]
[WhiteElo "3138"]
[BlackElo "2970"]
[Result "1-0"]
[Round "8"]
[TimeControl "180+2"]
[Date "2023.07.18"]
[WhiteClock "0:00:33"]
[BlackClock "0:00:00"]
[Board "3"]

1. e4 {[%clk 0:03:00]}  e5 {[%clk 0:02:54]} 2. Nf3 {[%clk 0:03:01]}  Nc6 {[%clk 0:02:54]} 3. Nc3 {[%clk 0:03:02]}  Nf6 {[%clk 0:02:54]} 4. d4 {[%clk 0:03:03]}  exd4 {[%clk 0:02:54]} 5. Nd5 {[%clk 0:03:03]}  Nb4 {[%clk 0:02:46]} 6. Nxf6+ {[%clk 0:03:03]}  Qxf6 {[%clk 0:02:47]} 7. a3 {[%clk 0:03:04]}  Nc6 {[%clk 0:02:45]} 8. Bd3 {[%clk 0:03:05]}  h6 {[%clk 0:02:25]} 9. O-O {[%clk 0:02:57]}  d6 {[%clk 0:02:16]} 10. Bb5 {[%clk 0:02:55]}  Bd7 {[%clk 0:02:16]} 11. Bxc6 {[%clk 0:02:47]}  Bxc6 {[%clk 0:02:17]} 12. Nxd4 {[%clk 0:02:46]}  Be7 {[%clk 0:02:16]} 13. f3 {[%clk 0:02:32]}  Bd7 {[%clk 0:02:14]} 14. c4 {[%clk 0:02:18]}  O-O {[%clk 0:02:14]} 15. Ne2 {[%clk 0:02:07]}  b5 {[%clk 0:02:08]} 16. Nc3 {[%clk 0:02:05]}  c6 {[%clk 0:01:16]} 17. cxb5 {[%clk 0:02:03]}  Bd8 {[%clk 0:01:15]} 18. bxc6 {[%clk 0:01:52]}  Bb6+ {[%clk 0:01:14]} 19. Kh1 {[%clk 0:01:52]}  Bxc6 {[%clk 0:01:15]} 20. Qd3 {[%clk 0:01:39]}  Rab8 {[%clk 0:01:08]} 21. b4 {[%clk 0:01:28]}  Bd4 {[%clk 0:01:04]} 22. Bb2 {[%clk 0:01:28]}  Bb5 {[%clk 0:00:41]} 23. Nxb5 {[%clk 0:01:24]}  Bxb2 {[%clk 0:00:41]} 24. Rad1 {[%clk 0:01:07]}  Be5 {[%clk 0:00:12]} 25. Nxa7 {[%clk 0:01:07]}  d5 {[%clk 0:00:03]} 26. exd5 {[%clk 0:01:00]}  Rfd8 {[%clk 0:00:02]} 27. Nc6 {[%clk 0:00:59]}  Bd6 {[%clk 0:00:02]} 28. Nxb8 {[%clk 0:00:58]}  Rxb8 {[%clk 0:00:02]} 29. g3 {[%clk 0:00:53]}  h5 {[%clk 0:00:03]} 30. Kg2 {[%clk 0:00:51]}  h4 {[%clk 0:00:03]} 31. Rde1 {[%clk 0:00:47]}  Ra8 {[%clk 0:00:03]} 32. Re2 {[%clk 0:00:45]}  g6 {[%clk 0:00:03]} 33. Rc1 {[%clk 0:00:42]}  hxg3 {[%clk 0:00:02]} 34. hxg3 {[%clk 0:00:43]}  Qg5 {[%clk 0:00:02]} 35. f4 {[%clk 0:00:39]}  Bxf4 {[%clk 0:00:03]} 36. Rce1 {[%clk 0:00:36]}  Kh7 {[%clk 0:00:00]} 37. Qf3 {[%clk 0:00:33]} 1-0


[Site "https://www.chess.com"]

[Event "Titled Tuesday Blitz July 18 Late 2023"]
[White "Martinez Alcantara, Jose Eduardo"]
[Black "Van Foreest, Jorden"]
[WhiteFideId "3805662"]
[BlackFideId "1039784"]
[WhiteElo "3062"]
[BlackElo "2955"]
[Result "1-0"]
[Round "8"]
[TimeControl "180+2"]
[Date "2023.07.18"]
[WhiteClock "0:00:13"]
[BlackClock "0:00:01"]
[Board "4"]

1. e4 {[%clk 0:03:00]}  c6 {[%clk 0:03:00]} 2. d4 {[%clk 0:03:00]}  d5 {[%clk 0:03:01]} 3. e5 {[%clk 0:03:00]}  Bf5 {[%clk 0:03:01]} 4. h4 {[%clk 0:03:01]}  h5 {[%clk 0:03:00]} 5. Bd3 {[%clk 0:03:01]}  Bxd3 {[%clk 0:03:00]} 6. Qxd3 {[%clk 0:03:02]}  e6 {[%clk 0:02:58]} 7. Nf3 {[%clk 0:03:02]}  Qa5+ {[%clk 0:02:58]} 8. Nbd2 {[%clk 0:02:58]}  Ne7 {[%clk 0:02:42]} 9. O-O {[%clk 0:02:58]}  Nf5 {[%clk 0:02:43]} 10. c4 {[%clk 0:02:51]}  Be7 {[%clk 0:02:42]} 11. g3 {[%clk 0:02:51]}  Nd7 {[%clk 0:02:40]} 12. Rd1 {[%clk 0:02:47]}  Rd8 {[%clk 0:02:39]} 13. b3 {[%clk 0:02:39]}  O-O {[%clk 0:02:38]} 14. Bb2 {[%clk 0:02:18]}  dxc4 {[%clk 0:02:33]} 15. Nxc4 {[%clk 0:02:05]}  Qd5 {[%clk 0:02:29]} 16. Qe2 {[%clk 0:01:58]}  g6 {[%clk 0:02:26]} 17. Ncd2 {[%clk 0:01:51]}  Qb5 {[%clk 0:02:24]} 18. Qe1 {[%clk 0:01:32]}  c5 {[%clk 0:02:20]} 19. Nc4 {[%clk 0:01:25]}  Nb6 {[%clk 0:02:08]} 20. Nd6 {[%clk 0:01:00]}  Nxd6 {[%clk 0:01:50]} 21. exd6 {[%clk 0:01:01]}  Bf6 {[%clk 0:01:51]} 22. Rac1 {[%clk 0:00:58]}  c4 {[%clk 0:01:47]} 23. Ba3 {[%clk 0:00:58]}  cxb3 {[%clk 0:01:46]} 24. axb3 {[%clk 0:00:50]}  Qxb3 {[%clk 0:01:44]} 25. Qe3 {[%clk 0:00:49]}  Qd5 {[%clk 0:01:37]} 26. Ne5 {[%clk 0:00:43]}  Qb5 {[%clk 0:01:19]} 27. Re1 {[%clk 0:00:41]}  Qa4 {[%clk 0:01:03]} 28. d7 {[%clk 0:00:37]}  Bxe5 {[%clk 0:00:54]} 29. Bxf8 {[%clk 0:00:25]}  Qxd4 {[%clk 0:00:51]} 30. Bc5 {[%clk 0:00:16]}  Qxe3 {[%clk 0:00:50]} 31. Bxe3 {[%clk 0:00:16]}  Bd6 {[%clk 0:00:44]} 32. Red1 {[%clk 0:00:16]}  Rxd7 {[%clk 0:00:41]} 33. Bxb6 {[%clk 0:00:16]}  axb6 {[%clk 0:00:41]} 34. Rb1 {[%clk 0:00:17]}  Kf8 {[%clk 0:00:30]} 35. Rxb6 {[%clk 0:00:16]}  Ke7 {[%clk 0:00:31]} 36. Rdb1 {[%clk 0:00:16]}  Rd8 {[%clk 0:00:29]} 37. Rxb7+ {[%clk 0:00:17]}  Kf6 {[%clk 0:00:29]} 38. R7b3 {[%clk 0:00:17]}  e5 {[%clk 0:00:20]} 39. Rd1 {[%clk 0:00:16]}  Ke6 {[%clk 0:00:20]} 40. Rb6 {[%clk 0:00:16]}  e4 {[%clk 0:00:17]} 41. Kf1 {[%clk 0:00:16]}  f5 {[%clk 0:00:18]} 42. Ke2 {[%clk 0:00:17]}  Ke5 {[%clk 0:00:19]} 43. Ra6 {[%clk 0:00:16]}  Ke6 {[%clk 0:00:19]} 44. Ke3 {[%clk 0:00:16]}  Ke5 {[%clk 0:00:18]} 45. Ke2 {[%clk 0:00:15]}  Ke6 {[%clk 0:00:18]} 46. Rb1 {[%clk 0:00:15]}  Kd5 {[%clk 0:00:16]} 47. Rb5+ {[%clk 0:00:13]}  Ke6 {[%clk 0:00:17]} 48. Rb7 {[%clk 0:00:13]}  Kf6 {[%clk 0:00:14]} 49. Kf1 {[%clk 0:00:11]}  Ke6 {[%clk 0:00:15]} 50. Rbb6 {[%clk 0:00:11]}  Ke5 {[%clk 0:00:15]} 51. Kg2 {[%clk 0:00:10]}  Rd7 {[%clk 0:00:16]} 52. Rb5+ {[%clk 0:00:09]}  Ke6 {[%clk 0:00:16]} 53. Rb8 {[%clk 0:00:09]}  Kf7 {[%clk 0:00:13]} 54. Rc8 {[%clk 0:00:09]}  Ke6 {[%clk 0:00:12]} 55. Kf1 {[%clk 0:00:10]}  Kf6 {[%clk 0:00:12]} 56. Ke2 {[%clk 0:00:11]}  Ke6 {[%clk 0:00:12]} 57. f4 {[%clk 0:00:07]}  exf3+ {[%clk 0:00:13]} 58. Kxf3 {[%clk 0:00:08]}  Kf6 {[%clk 0:00:12]} 59. Rc3 {[%clk 0:00:08]}  Ke6 {[%clk 0:00:11]} 60. Rd3 {[%clk 0:00:09]}  Ke5 {[%clk 0:00:10]} 61. Ra2 {[%clk 0:00:10]}  Ke6 {[%clk 0:00:08]} 62. Re2+ {[%clk 0:00:10]}  Kf6 {[%clk 0:00:09]} 63. Re1 {[%clk 0:00:11]}  Kf7 {[%clk 0:00:09]} 64. Re2 {[%clk 0:00:11]}  Kf6 {[%clk 0:00:10]} 65. Kg2 {[%clk 0:00:11]}  Rd8 {[%clk 0:00:10]} 66. Red2 {[%clk 0:00:11]}  Ke6 {[%clk 0:00:10]} 67. Kf1 {[%clk 0:00:12]}  Ke7 {[%clk 0:00:10]} 68. Ke2 {[%clk 0:00:12]}  Ke6 {[%clk 0:00:11]} 69. Kd1 {[%clk 0:00:13]}  Ke7 {[%clk 0:00:11]} 70. Ra2 {[%clk 0:00:13]}  Bxg3 {[%clk 0:00:01]} 71. Re2+ {[%clk 0:00:13]} 1-0


[Site "https://www.chess.com"]

[Event "Titled Tuesday Blitz July 18 Late 2023"]
[White "Mamedov, Rauf"]
[Black "Matlakov, Maxim"]
[WhiteFideId "13401653"]
[BlackFideId "4168003"]
[WhiteElo "3054"]
[BlackElo "2962"]
[Result "0-1"]
[Round "8"]
[TimeControl "180+2"]
[Date "2023.07.18"]
[WhiteClock "0:01:41"]
[BlackClock "0:01:58"]
[Board "5"]

1. e4 {[%clk 0:02:59]}  e5 {[%clk 0:03:00]} 2. Nf3 {[%clk 0:02:59]}  Nc6 {[%clk 0:03:00]} 3. Bc4 {[%clk 0:02:58]}  Bc5 {[%clk 0:03:00]} 4. c3 {[%clk 0:02:57]}  Nf6 {[%clk 0:02:59]} 5. d3 {[%clk 0:02:57]}  O-O {[%clk 0:02:56]} 6. a4 {[%clk 0:02:56]}  a5 {[%clk 0:02:54]} 7. O-O {[%clk 0:02:56]}  h6 {[%clk 0:02:50]} 8. Re1 {[%clk 0:02:55]}  d6 {[%clk 0:02:50]} 9. h3 {[%clk 0:02:54]}  Be6 {[%clk 0:02:50]} 10. Nbd2 {[%clk 0:02:54]}  Bxc4 {[%clk 0:02:49]} 11. Nxc4 {[%clk 0:02:53]}  Re8 {[%clk 0:02:49]} 12. Be3 {[%clk 0:02:50]}  Bxe3 {[%clk 0:02:48]} 13. Nxe3 {[%clk 0:02:50]}  Ne7 {[%clk 0:02:48]} 14. Qb3 {[%clk 0:02:47]}  b6 {[%clk 0:02:48]} 15. Rad1 {[%clk 0:02:47]}  Ng6 {[%clk 0:02:47]} 16. Nf5 {[%clk 0:02:46]}  Qd7 {[%clk 0:02:46]} 17. Qc4 {[%clk 0:02:44]}  d5 {[%clk 0:02:40]} 18. Qb3 {[%clk 0:02:38]}  Rad8 {[%clk 0:02:37]} 19. Ng3 {[%clk 0:02:33]}  Qc6 {[%clk 0:02:35]} 20. Qb5 {[%clk 0:02:04]}  Qe6 {[%clk 0:02:29]} 21. exd5 {[%clk 0:01:56]}  Rxd5 {[%clk 0:02:16]} 22. Qc4 {[%clk 0:01:56]}  Qd7 {[%clk 0:02:15]} 23. d4 {[%clk 0:01:54]}  exd4 {[%clk 0:02:15]} 24. Rxe8+ {[%clk 0:01:53]}  Qxe8 {[%clk 0:02:14]} 25. Re1 {[%clk 0:01:49]}  Ne5 {[%clk 0:02:03]} 26. Nxd4 {[%clk 0:01:41]}  Nxc4 {[%clk 0:01:58]} 0-1


[Site "https://www.chess.com"]